[Event "Titled Tuesday Blitz May 30 Early 2023"]
[White "Devaev, Alexander"]
[Black "Bok, Benjamin"]
[WhiteFideId "4169395"]
[BlackFideId "1017063"]
[WhiteElo "2172"]
[BlackElo "2657"]
[Result "0-1"]
[Round "01"]
[TimeControl "180+2"]
[Date "2023.05.30"]
[WhiteClock "0:00:30"]
[BlackClock "0:01:23"]

1. Nf3 {[%clk 0:02:34]}  d5 {[%clk 0:02:58]} 2. c4 {[%clk 0:02:33]}  e6 {[%clk 0:02:56]} 3. d4 {[%clk 0:02:31]}  Nf6 {[%clk 0:02:56]} 4. Nc3 {[%clk 0:02:30]}  c6 {[%clk 0:02:56]} 5. Bg5 {[%clk 0:02:31]}  h6 {[%clk 0:02:56]} 6. Bxf6 {[%clk 0:02:28]}  Qxf6 {[%clk 0:02:57]} 7. e3 {[%clk 0:02:28]}  g6 {[%clk 0:02:57]} 8. Qc2 {[%clk 0:02:21]}  Nd7 {[%clk 0:02:56]} 9. Bd3 {[%clk 0:02:16]}  Bg7 {[%clk 0:02:54]} 10. O-O {[%clk 0:02:17]}  O-O {[%clk 0:02:53]} 11. Rad1 {[%clk 0:02:17]}  Qe7 {[%clk 0:02:53]} 12. Rfe1 {[%clk 0:02:15]}  dxc4 {[%clk 0:02:45]} 13. Bxc4 {[%clk 0:02:15]}  Rd8 {[%clk 0:02:46]} 14. h3 {[%clk 0:02:13]}  b6 {[%clk 0:02:41]} 15. e4 {[%clk 0:01:50]}  Bb7 {[%clk 0:02:38]} 16. a3 {[%clk 0:01:41]}  Rac8 {[%clk 0:02:33]} 17. Qb3 {[%clk 0:01:35]}  b5 {[%clk 0:02:16]} 18. Bf1 {[%clk 0:01:24]}  a6 {[%clk 0:02:13]} 19. Qc2 {[%clk 0:01:07]}  c5 {[%clk 0:02:12]} 20. d5 {[%clk 0:01:08]}  Ne5 {[%clk 0:01:45]} 21. Nxe5 {[%clk 0:01:05]}  Bxe5 {[%clk 0:01:45]} 22. a4 {[%clk 0:01:00]}  b4 {[%clk 0:01:41]} 23. Nb1 {[%clk 0:00:58]}  exd5 {[%clk 0:01:35]} 24. exd5 {[%clk 0:00:58]}  Qf6 {[%clk 0:01:34]} 25. b3 {[%clk 0:00:50]}  Bd4 {[%clk 0:01:26]} 26. Bc4 {[%clk 0:00:34]}  Bxd5 {[%clk 0:01:26]} 27. Bxa6 {[%clk 0:00:30]}  Qxa6 {[%clk 0:01:23]} 0-1


[Site "https://www.chess.com"]

[Event "Titled Tuesday Blitz May 30 Early 2023"]
[White "Deac, Bogdan-Daniel"]
[Black "LangesNasenhaar"]
[WhiteFideId "1226380"]
[WhiteElo "2649"]
[BlackElo "2507"]
[Result "1-0"]
[Round "01"]
[TimeControl "180+2"]
[Date "2023.05.30"]
[WhiteClock "0:00:49"]
[BlackClock "0:00:04"]

1. g3 {[%clk 0:02:59]}  d5 {[%clk 0:02:58]} 2. Bg2 {[%clk 0:02:59]}  c6 {[%clk 0:02:58]} 3. d3 {[%clk 0:02:59]}  Bf5 {[%clk 0:02:55]} 4. Nd2 {[%clk 0:02:56]}  h6 {[%clk 0:02:53]} 5. e4 {[%clk 0:02:56]}  Bh7 {[%clk 0:02:52]} 6. Nh3 {[%clk 0:02:48]}  e6 {[%clk 0:02:51]} 7. O-O {[%clk 0:02:48]}  Nf6 {[%clk 0:02:51]} 8. Qe2 {[%clk 0:02:48]}  Be7 {[%clk 0:02:49]} 9. f4 {[%clk 0:02:48]}  O-O {[%clk 0:02:47]} 10. g4 {[%clk 0:02:48]}  dxe4 {[%clk 0:02:32]} 11. dxe4 {[%clk 0:02:48]}  Bg6 {[%clk 0:02:02]} 12. g5 {[%clk 0:02:28]}  hxg5 {[%clk 0:02:01]} 13. fxg5 {[%clk 0:02:29]}  Nfd7 {[%clk 0:01:47]} 14. Nf3 {[%clk 0:02:21]}  Bh5 {[%clk 0:01:38]} 15. Qe1 {[%clk 0:02:17]}  Bxf3 {[%clk 0:01:30]} 16. Rxf3 {[%clk 0:02:17]}  Ne5 {[%clk 0:01:30]} 17. Rg3 {[%clk 0:02:17]}  Ng6 {[%clk 0:01:24]} 18. Nf4 {[%clk 0:02:12]}  Nxf4 {[%clk 0:01:03]} 19. Bxf4 {[%clk 0:02:13]}  g6 {[%clk 0:01:03]} 20. Qc3 {[%clk 0:01:53]}  Qb6+ {[%clk 0:00:47]} 21. Kh1 {[%clk 0:01:38]}  Bb4 {[%clk 0:00:43]} 22. Qf3 {[%clk 0:01:27]}  Nd7 {[%clk 0:00:37]} 23. Rd1 {[%clk 0:01:10]}  Rad8 {[%clk 0:00:35]} 24. Rh3 {[%clk 0:01:10]}  Rfe8 {[%clk 0:00:22]} 25. Rxd7 {[%clk 0:00:57]}  Rxd7 {[%clk 0:00:21]} 26. Be5 {[%clk 0:00:58]}  f6 {[%clk 0:00:13]} 27. Qxf6 {[%clk 0:00:49]}  Rd1+ {[%clk 0:00:12]} 28. Bf1 {[%clk 0:00:49]}  Rxf1+ {[%clk 0:00:04]} 29. Qxf1 {[%clk 0:00:49]} 1-0


[Site "https://www.chess.com"]

[Event "Titled Tuesday Blitz May 30 Early 2023"]
[White "Shukhman, Anna"]
[Black "Narayanan.S.L"]
[WhiteFideId "54180058"]
[BlackFideId "5058422"]
[WhiteElo "2235"]
[BlackElo "2563"]
[Result "1/2-1/2"]
[Round "01"]
[TimeControl "180+2"]
[Date "2023.05.30"]
[WhiteClock "0:00:16"]
[BlackClock "0:00:10"]

1. e4 {[%clk 0:02:59]}  c5 {[%clk 0:02:58]} 2. Nf3 {[%clk 0:02:59]}  e6 {[%clk 0:02:58]} 3. d4 {[%clk 0:02:59]}  cxd4 {[%clk 0:02:59]} 4. Nxd4 {[%clk 0:03:00]}  Nc6 {[%clk 0:02:59]} 5. c4 {[%clk 0:02:58]}  Bc5 {[%clk 0:02:58]} 6. Nb3 {[%clk 0:02:56]}  Bb6 {[%clk 0:02:57]} 7. Nc3 {[%clk 0:02:54]}  Nf6 {[%clk 0:02:56]} 8. Be2 {[%clk 0:02:54]}  O-O {[%clk 0:02:55]} 9. O-O {[%clk 0:02:53]}  d6 {[%clk 0:02:55]} 10. Bf4 {[%clk 0:02:52]}  e5 {[%clk 0:02:55]} 11. Bg5 {[%clk 0:02:51]}  Be6 {[%clk 0:02:55]} 12. Nd5 {[%clk 0:02:49]}  Bxd5 {[%clk 0:02:54]} 13. cxd5 {[%clk 0:02:50]}  Nd4 {[%clk 0:02:55]} 14. a4 {[%clk 0:02:40]}  h6 {[%clk 0:02:52]} 15. Bxf6 {[%clk 0:02:38]}  Qxf6 {[%clk 0:02:53]} 16. a5 {[%clk 0:02:38]}  Nxb3 {[%clk 0:02:53]} 17. Qxb3 {[%clk 0:02:39]}  Bd4 {[%clk 0:02:53]} 18. a6 {[%clk 0:02:35]}  bxa6 {[%clk 0:02:51]} 19. Rxa6 {[%clk 0:02:32]}  Rab8 {[%clk 0:02:49]} 20. Qa3 {[%clk 0:02:30]}  Rxb2 {[%clk 0:02:47]} 21. Rxd6 {[%clk 0:02:19]}  Qf4 {[%clk 0:02:47]} 22. Qf3 {[%clk 0:02:15]}  Qd2 {[%clk 0:02:43]} 23. Ba6 {[%clk 0:02:08]}  Rfb8 {[%clk 0:01:47]} 24. Rd7 {[%clk 0:02:01]}  Qf4 {[%clk 0:01:46]} 25. d6 {[%clk 0:01:42]}  Rd2 {[%clk 0:01:21]} 26. Bc4 {[%clk 0:01:25]}  Qxf3 {[%clk 0:01:17]} 27. gxf3 {[%clk 0:01:24]}  Rbb2 {[%clk 0:01:17]} 28. Rxf7 {[%clk 0:01:16]}  Kh7 {[%clk 0:01:13]} 29. d7 {[%clk 0:01:11]}  Bb6 {[%clk 0:01:09]} 30. Be6 {[%clk 0:00:57]}  Kg6 {[%clk 0:00:55]} 31. Rf8 {[%clk 0:00:53]}  Rd6 {[%clk 0:00:40]} 32. Bf5+ {[%clk 0:00:52]}  Kg5 {[%clk 0:00:40]} 33. Kg2 {[%clk 0:00:50]}  g6 {[%clk 0:00:40]} 34. Rg8 {[%clk 0:00:38]}  h5 {[%clk 0:00:36]} 35. h4+ {[%clk 0:00:21]}  Kh6 {[%clk 0:00:26]} 36. Bh3 {[%clk 0:00:20]}  Rdd2 {[%clk 0:00:26]} 37. Kg3 {[%clk 0:00:18]}  a5 {[%clk 0:00:21]} 38. Be6 {[%clk 0:00:17]}  a4 {[%clk 0:00:19]} 39. Ra8 {[%clk 0:00:17]}  Rd6 {[%clk 0:00:12]} 40. Bh3 {[%clk 0:00:16]}  Ra2 {[%clk 0:00:12]} 41. f4 {[%clk 0:00:14]}  Rd3+ {[%clk 0:00:08]} 42. f3 {[%clk 0:00:13]}  exf4+ {[%clk 0:00:09]} 43. Kxf4 {[%clk 0:00:13]}  Bc7+ {[%clk 0:00:10]} 44. e5 {[%clk 0:00:13]}  Raa3 {[%clk 0:00:09]} 45. Ke4 {[%clk 0:00:08]}  Re3+ {[%clk 0:00:10]} 46. Kd5 {[%clk 0:00:08]}  Rad3+ {[%clk 0:00:09]} 47. Kc6 {[%clk 0:00:08]}  Rc3+ {[%clk 0:00:10]} 48. Kb7 {[%clk 0:00:09]}  Rxe5 {[%clk 0:00:10]} 49. d8=Q {[%clk 0:00:09]}  Bxd8 {[%clk 0:00:09]} 50. Rxd8 {[%clk 0:00:09]}  Rb5+ {[%clk 0:00:08]} 51. Ka6 {[%clk 0:00:10]}  Rb4 {[%clk 0:00:08]} 52. Bd7 {[%clk 0:00:09]}  Rxh4 {[%clk 0:00:06]} 53. Ra1 {[%clk 0:00:09]}  a3 {[%clk 0:00:06]} 54. Bb5 {[%clk 0:00:08]}  Rxf3 {[%clk 0:00:06]} 55. Rd6 {[%clk 0:00:08]}  Rhf4 {[%clk 0:00:06]} 56. Bd3 {[%clk 0:00:08]}  Rf6 {[%clk 0:00:06]} 57. Rxf6 {[%clk 0:00:08]}  Rxf6+ {[%clk 0:00:07]} 58. Kb5 {[%clk 0:00:09]}  g5 {[%clk 0:00:07]} 59. Rxa3 {[%clk 0:00:09]}  g4 {[%clk 0:00:07]} 60. Kc4 {[%clk 0:00:10]}  Kg5 {[%clk 0:00:07]} 61. Ra1 {[%clk 0:00:10]}  g3 {[%clk 0:00:08]} 62. Kd4 {[%clk 0:00:10]}  h4 {[%clk 0:00:08]} 63. Ke3 {[%clk 0:00:11]}  h3 {[%clk 0:00:09]} 64. Be4 {[%clk 0:00:12]}  Kg4 {[%clk 0:00:08]} 65. Ra8 {[%clk 0:00:11]}  Rh6 {[%clk 0:00:05]} 66. Rg8+ {[%clk 0:00:11]}  Kh4 {[%clk 0:00:05]} 67. Kf3 {[%clk 0:00:11]}  Rf6+ {[%clk 0:00:04]} 68. Ke3 {[%clk 0:00:11]}  h2 {[%clk 0:00:04]} 69. Rh8+ {[%clk 0:00:11]}  Kg4 {[%clk 0:00:04]} 70. Rg8+ {[%clk 0:00:11]}  Kh5 {[%clk 0:00:03]} 71. Rh8+ {[%clk 0:00:11]}  Kg5 {[%clk 0:00:03]} 72. Rg8+ {[%clk 0:00:12]}  Kh4 {[%clk 0:00:02]} 73. Rh8+ {[%clk 0:00:12]}  Kg4 {[%clk 0:00:03]} 74. Rg8+ {[%clk 0:00:12]}  Kh5 {[%clk 0:00:03]} 75. Rh8+ {[%clk 0:00:12]}  Rh6 {[%clk 0:00:04]} 76. Rxh6+ {[%clk 0:00:12]}  Kxh6 {[%clk 0:00:05]} 77. Bh1 {[%clk 0:00:13]}  Kg5 {[%clk 0:00:04]} 78. Kf3 {[%clk 0:00:13]}  Kh4 {[%clk 0:00:05]} 79. Kg2 {[%clk 0:00:13]}  Kg4 {[%clk 0:00:06]} 80. Kf1 {[%clk 0:00:14]}  Kh3 {[%clk 0:00:06]} 81. Bg2+ {[%clk 0:00:14]}  Kh4 {[%clk 0:00:07]} 82. Ke2 {[%clk 0:00:15]}  Kg5 {[%clk 0:00:08]} 83. Kf3 {[%clk 0:00:15]}  Kh4 {[%clk 0:00:09]} 84. Kf4 {[%clk 0:00:15]}  Kh5 {[%clk 0:00:09]} 85. Kxg3 {[%clk 0:00:15]}  Kh6 {[%clk 0:00:10]} 86. Kxh2 {[%clk 0:00:16]} 1/2-1/2


[Site "https://www.chess.com"]

[Event "Titled Tuesday Blitz May 30 Early 2023"]
[White "Sjugirov, Sanan"]
[Black "Toncheva, Nadya"]
[WhiteFideId "4189302"]
[BlackFideId "2924056"]
[WhiteElo "2569"]
[BlackElo "2101"]
[Result "1-0"]
[Round "01"]
[TimeControl "180+2"]
[Date "2023.05.30"]
[WhiteClock "0:00:18"]
[BlackClock "0:00:01"]

1. e4 {[%clk 0:02:58]}  c5 {[%clk 0:02:59]} 2. Nf3 {[%clk 0:02:58]}  e6 {[%clk 0:02:59]} 3. d4 {[%clk 0:02:58]}  cxd4 {[%clk 0:03:00]} 4. Nxd4 {[%clk 0:02:59]}  Nc6 {[%clk 0:03:01]} 5. Nc3 {[%clk 0:02:59]}  Qc7 {[%clk 0:03:01]} 6. Be3 {[%clk 0:02:57]}  a6 {[%clk 0:03:01]} 7. a3 {[%clk 0:02:55]}  Nf6 {[%clk 0:03:00]} 8. Be2 {[%clk 0:02:53]}  Be7 {[%clk 0:02:59]} 9. g4 {[%clk 0:02:48]}  O-O {[%clk 0:02:55]} 10. g5 {[%clk 0:02:48]}  Ne8 {[%clk 0:02:54]} 11. h4 {[%clk 0:02:46]}  Nxd4 {[%clk 0:02:39]} 12. Qxd4 {[%clk 0:02:45]}  Qd6 {[%clk 0:02:30]} 13. Qxd6 {[%clk 0:02:39]}  Nxd6 {[%clk 0:02:23]} 14. Bc5 {[%clk 0:02:33]}  Re8 {[%clk 0:02:23]} 15. O-O-O {[%clk 0:02:25]}  Nf5 {[%clk 0:02:09]} 16. Bb6 {[%clk 0:02:14]}  Nxh4 {[%clk 0:01:52]} 17. Rhg1 {[%clk 0:01:14]}  Ng6 {[%clk 0:01:50]} 18. Kb1 {[%clk 0:01:13]}  Bd8 {[%clk 0:01:40]} 19. Na4 {[%clk 0:01:04]}  Rb8 {[%clk 0:01:12]} 20. c4 {[%clk 0:00:50]}  Bxb6 {[%clk 0:00:59]} 21. Nxb6 {[%clk 0:00:50]}  Rd8 {[%clk 0:00:59]} 22. c5 {[%clk 0:00:48]}  Nf8 {[%clk 0:00:35]} 23. Rd6 {[%clk 0:00:42]}  Ng6 {[%clk 0:00:31]} 24. b4 {[%clk 0:00:40]}  Nf8 {[%clk 0:00:31]} 25. f4 {[%clk 0:00:35]}  Ng6 {[%clk 0:00:29]} 26. Rf1 {[%clk 0:00:35]}  Rf8 {[%clk 0:00:15]} 27. f5 {[%clk 0:00:18]}  Ne5 {[%clk 0:00:13]} 28. f6 {[%clk 0:00:18]}  g6 {[%clk 0:00:11]} 29. Kb2 {[%clk 0:00:17]}  Rd8 {[%clk 0:00:10]} 30. Kc3 {[%clk 0:00:17]}  Nc6 {[%clk 0:00:10]} 31. a4 {[%clk 0:00:17]}  Ne5 {[%clk 0:00:09]} 32. b5 {[%clk 0:00:16]}  axb5 {[%clk 0:00:09]} 33. axb5 {[%clk 0:00:17]}  Re8 {[%clk 0:00:08]} 34. Kd4 {[%clk 0:00:17]}  Nc6+ {[%clk 0:00:04]} 35. bxc6 {[%clk 0:00:18]}  dxc6 {[%clk 0:00:04]} 36. Ke5 {[%clk 0:00:18]}  Kf8 {[%clk 0:00:03]} 37. Rh1 {[%clk 0:00:18]}  Kg8 {[%clk 0:00:01]} 38. Rd3 {[%clk 0:00:18]} 1-0


[Site "https://www.chess.com"]

[Event "Titled Tuesday Blitz May 30 Early 2023"]
[White "Narayanan, Srinath"]
[Black "Sukandar, Irine Kharisma"]
[WhiteFideId "5018420"]
[BlackFideId "7101937"]
[WhiteElo "2438"]
[BlackElo "2315"]
[Result "1-0"]
[Round "01"]
[TimeControl "180+2"]
[Date "2023.05.30"]
[WhiteClock "0:00:26"]
[BlackClock "0:00:10"]

1. Nf3 {[%clk 0:03:00]}  Nf6 {[%clk 0:02:57]} 2. c4 {[%clk 0:03:00]}  c6 {[%clk 0:02:53]} 3. e3 {[%clk 0:02:57]}  d5 {[%clk 0:02:52]} 4. Nc3 {[%clk 0:02:55]}  g6 {[%clk 0:02:48]} 5. b3 {[%clk 0:02:53]}  Bg7 {[%clk 0:02:47]} 6. Bb2 {[%clk 0:02:51]}  O-O {[%clk 0:02:43]} 7. d4 {[%clk 0:02:48]}  Bg4 {[%clk 0:02:14]} 8. Be2 {[%clk 0:02:46]}  Nbd7 {[%clk 0:02:11]} 9. O-O {[%clk 0:02:45]}  Nb6 {[%clk 0:02:00]} 10. cxd5 {[%clk 0:02:39]}  Nbxd5 {[%clk 0:01:46]} 11. h3 {[%clk 0:02:38]}  Bf5 {[%clk 0:01:44]} 12. Ne5 {[%clk 0:02:31]}  Nxc3 {[%clk 0:01:42]} 13. Bxc3 {[%clk 0:02:31]}  Ne4 {[%clk 0:01:17]} 14. Qc1 {[%clk 0:02:31]}  c5 {[%clk 0:01:05]} 15. Bb2 {[%clk 0:02:19]}  Rc8 {[%clk 0:01:04]} 16. Qe1 {[%clk 0:02:07]}  Qd6 {[%clk 0:00:40]} 17. Nc4 {[%clk 0:02:03]}  Qd8 {[%clk 0:00:28]} 18. Rd1 {[%clk 0:01:59]}  Qc7 {[%clk 0:00:27]} 19. Bf3 {[%clk 0:01:53]}  Rfd8 {[%clk 0:00:27]} 20. dxc5 {[%clk 0:01:42]}  Bxb2 {[%clk 0:00:25]} 21. Nxb2 {[%clk 0:01:43]}  Qxc5 {[%clk 0:00:24]} 22. Na4 {[%clk 0:01:12]}  Qc2 {[%clk 0:00:19]} 23. Rxd8+ {[%clk 0:01:11]}  Rxd8 {[%clk 0:00:19]} 24. Qa5 {[%clk 0:01:12]}  Rd2 {[%clk 0:00:17]} 25. Bxe4 {[%clk 0:00:35]}  Bxe4 {[%clk 0:00:17]} 26. Qc5 {[%clk 0:00:36]}  Qxa2 {[%clk 0:00:14]} 27. Nc3 {[%clk 0:00:26]}  Qc2 {[%clk 0:00:14]} 28. Nxe4 {[%clk 0:00:24]}  Qxe4 {[%clk 0:00:14]} 29. Qc8+ {[%clk 0:00:25]}  Kg7 {[%clk 0:00:10]} 30. Qc3+ {[%clk 0:00:26]} 1-0


[Site "https://www.chess.com"]

[Event "Titled Tuesday Blitz May 30 Early 2023"]
[White "Terry, Renato"]
[Black "Lymar, Vladislav"]
[WhiteFideId "3803457"]
[BlackFideId "14162180"]
[WhiteElo "2575"]
[BlackElo "2234"]
[Result "0-1"]
[Round "01"]
[TimeControl "180+2"]
[Date "2023.05.30"]
[WhiteClock "0:00:26"]
[BlackClock "0:00:30"]

1. e4 {[%clk 0:02:57]}  c5 {[%clk 0:02:55]} 2. Nf3 {[%clk 0:02:56]}  Nc6 {[%clk 0:02:54]} 3. Bb5 {[%clk 0:02:53]}  e6 {[%clk 0:02:51]} 4. O-O {[%clk 0:02:52]}  Nge7 {[%clk 0:02:48]} 5. Re1 {[%clk 0:02:52]}  a6 {[%clk 0:02:43]} 6. Bxc6 {[%clk 0:02:51]}  Nxc6 {[%clk 0:02:43]} 7. d4 {[%clk 0:02:51]}  cxd4 {[%clk 0:02:44]} 8. Nxd4 {[%clk 0:02:51]}  Qb6 {[%clk 0:02:45]} 9. Nb3 {[%clk 0:02:46]}  Be7 {[%clk 0:02:42]} 10. Bf4 {[%clk 0:02:37]}  O-O {[%clk 0:02:33]} 11. Bd6 {[%clk 0:02:37]}  Qd8 {[%clk 0:02:25]} 12. a4 {[%clk 0:02:30]}  b6 {[%clk 0:02:23]} 13. Na3 {[%clk 0:02:28]}  Bb7 {[%clk 0:02:18]} 14. Nc4 {[%clk 0:02:28]}  Rc8 {[%clk 0:02:11]} 15. Qd2 {[%clk 0:02:18]}  Na5 {[%clk 0:01:51]} 16. Nbxa5 {[%clk 0:01:55]}  bxa5 {[%clk 0:01:52]} 17. Bxe7 {[%clk 0:01:54]}  Qxe7 {[%clk 0:01:51]} 18. Nxa5 {[%clk 0:01:46]}  Ba8 {[%clk 0:01:50]} 19. b4 {[%clk 0:01:33]}  Rfd8 {[%clk 0:01:39]} 20. c4 {[%clk 0:01:32]}  d6 {[%clk 0:01:30]} 21. Rab1 {[%clk 0:01:24]}  Qc7 {[%clk 0:01:25]} 22. h3 {[%clk 0:01:19]}  Rb8 {[%clk 0:01:24]} 23. b5 {[%clk 0:01:17]}  h6 {[%clk 0:01:23]} 24. Rec1 {[%clk 0:01:16]}  Bxe4 {[%clk 0:01:15]} 25. Rb2 {[%clk 0:01:17]}  Qb6 {[%clk 0:01:10]} 26. Nb3 {[%clk 0:01:13]}  Qa7 {[%clk 0:01:01]} 27. Nd4 {[%clk 0:01:04]}  Rdc8 {[%clk 0:00:56]} 28. Ne2 {[%clk 0:01:01]}  d5 {[%clk 0:00:54]} 29. Ng3 {[%clk 0:00:56]}  Bg6 {[%clk 0:00:54]} 30. cxd5 {[%clk 0:00:55]}  Rxc1+ {[%clk 0:00:55]} 31. Qxc1 {[%clk 0:00:56]}  exd5 {[%clk 0:00:55]} 32. Qc6 {[%clk 0:00:54]}  axb5 {[%clk 0:00:53]} 33. axb5 {[%clk 0:00:55]}  Qa1+ {[%clk 0:00:53]} 34. Kh2 {[%clk 0:00:42]}  Qxb2 {[%clk 0:00:49]} 35. f4 {[%clk 0:00:40]}  Qxb5 {[%clk 0:00:42]} 36. Qd6 {[%clk 0:00:39]}  Be4 {[%clk 0:00:40]} 37. f5 {[%clk 0:00:31]}  Qb2 {[%clk 0:00:31]} 38. Nxe4 {[%clk 0:00:27]}  dxe4 {[%clk 0:00:32]} 39. Qf4 {[%clk 0:00:26]}  Re8 {[%clk 0:00:30]} 0-1


[Site "https://www.chess.com"]

[Event "Titled Tuesday Blitz May 30 Early 2023"]
[White "Aydin, Gulenay"]
[Black "Zhigalko, Sergei"]
[WhiteFideId "34557431"]
[BlackFideId "13502956"]
[WhiteElo "2009"]
[BlackElo "2626"]
[Result "1/2-1/2"]
[Round "01"]
[TimeControl "180+2"]
[Date "2023.05.30"]
[WhiteClock "0:00:08"]
[BlackClock "0:00:06"]

1. e4 {[%clk 0:03:00]}  c5 {[%clk 0:02:59]} 2. Nf3 {[%clk 0:03:01]}  Nc6 {[%clk 0:02:59]} 3. Bb5 {[%clk 0:03:01]}  Nf6 {[%clk 0:02:59]} 4. O-O {[%clk 0:03:02]}  Nxe4 {[%clk 0:03:00]} 5. Re1 {[%clk 0:03:00]}  Nf6 {[%clk 0:02:58]} 6. c3 {[%clk 0:02:54]}  a6 {[%clk 0:02:53]} 7. Ba4 {[%clk 0:02:51]}  b5 {[%clk 0:02:52]} 8. Bc2 {[%clk 0:02:50]}  Bb7 {[%clk 0:02:52]} 9. d4 {[%clk 0:02:51]}  cxd4 {[%clk 0:02:53]} 10. cxd4 {[%clk 0:02:51]}  Nb4 {[%clk 0:02:53]} 11. Bb3 {[%clk 0:02:50]}  e6 {[%clk 0:02:53]} 12. Nc3 {[%clk 0:02:50]}  Be7 {[%clk 0:02:53]} 13. Bg5 {[%clk 0:02:49]}  O-O {[%clk 0:02:51]} 14. a3 {[%clk 0:02:47]}  Nbd5 {[%clk 0:02:44]} 15. Nxd5 {[%clk 0:02:33]}  Nxd5 {[%clk 0:02:41]} 16. Bd2 {[%clk 0:02:27]}  Rc8 {[%clk 0:02:41]} 17. Bc2 {[%clk 0:02:28]}  f5 {[%clk 0:02:38]} 18. Ne5 {[%clk 0:02:22]}  Bf6 {[%clk 0:02:37]} 19. Bd3 {[%clk 0:02:18]}  d6 {[%clk 0:02:35]} 20. Nf3 {[%clk 0:02:17]}  Qd7 {[%clk 0:02:34]} 21. a4 {[%clk 0:02:08]}  b4 {[%clk 0:02:30]} 22. a5 {[%clk 0:02:08]}  Rfe8 {[%clk 0:02:23]} 23. Qb3 {[%clk 0:01:36]}  Rb8 {[%clk 0:02:16]} 24. Bc4 {[%clk 0:01:28]}  Nc7 {[%clk 0:02:01]} 25. Rac1 {[%clk 0:01:02]}  Bd5 {[%clk 0:01:56]} 26. Qd3 {[%clk 0:00:47]}  Be4 {[%clk 0:01:45]} 27. Qe2 {[%clk 0:00:46]}  b3 {[%clk 0:01:32]} 28. Bc3 {[%clk 0:00:44]}  Nb5 {[%clk 0:01:20]} 29. Bxb3 {[%clk 0:00:36]}  d5 {[%clk 0:00:59]} 30. Red1 {[%clk 0:00:18]}  Qd8 {[%clk 0:00:48]} 31. Ba4 {[%clk 0:00:14]}  Re7 {[%clk 0:00:37]} 32. Bxb5 {[%clk 0:00:14]}  Rxb5 {[%clk 0:00:37]} 33. Nd2 {[%clk 0:00:15]}  e5 {[%clk 0:00:08]} 34. dxe5 {[%clk 0:00:13]}  Bxe5 {[%clk 0:00:04]} 35. Nxe4 {[%clk 0:00:14]}  fxe4 {[%clk 0:00:03]} 36. Bxe5 {[%clk 0:00:09]}  Rxe5 {[%clk 0:00:04]} 37. Rd4 {[%clk 0:00:08]}  Rxa5 {[%clk 0:00:03]} 38. Rcd1 {[%clk 0:00:08]}  Rb5 {[%clk 0:00:03]} 39. Qc2 {[%clk 0:00:08]}  h6 {[%clk 0:00:02]} 40. Rxe4 {[%clk 0:00:05]}  Rxe4 {[%clk 0:00:01]} 41. Qxe4 {[%clk 0:00:06]}  dxe4 {[%clk 0:00:02]} 42. Rxd8+ {[%clk 0:00:06]}  Kf7 {[%clk 0:00:03]} 43. Rd2 {[%clk 0:00:07]}  Ke6 {[%clk 0:00:03]} 44. Kf1 {[%clk 0:00:07]}  Rd5 {[%clk 0:00:03]} 45. Ke2 {[%clk 0:00:08]}  Rb5 {[%clk 0:00:03]} 46. Ke3 {[%clk 0:00:08]}  Ke5 {[%clk 0:00:03]} 47. Rc2 {[%clk 0:00:09]}  Rb3+ {[%clk 0:00:04]} 48. Ke2 {[%clk 0:00:09]}  Kd4 {[%clk 0:00:04]} 49. Rd2+ {[%clk 0:00:09]}  Kc4 {[%clk 0:00:05]} 50. Rd7 {[%clk 0:00:09]}  Rxb2+ {[%clk 0:00:05]} 51. Ke3 {[%clk 0:00:10]}  g5 {[%clk 0:00:04]} 52. Rd6 {[%clk 0:00:09]}  a5 {[%clk 0:00:04]} 53. Rxh6 {[%clk 0:00:10]}  a4 {[%clk 0:00:05]} 54. Ra6 {[%clk 0:00:10]}  Kb4 {[%clk 0:00:02]} 55. Kxe4 {[%clk 0:00:10]}  a3 {[%clk 0:00:02]} 56. g3 {[%clk 0:00:05]}  Rxf2 {[%clk 0:00:02]} 57. h4 {[%clk 0:00:03]}  g4 {[%clk 0:00:03]} 58. Ra8 {[%clk 0:00:03]}  a2 {[%clk 0:00:02]} 59. h5 {[%clk 0:00:03]}  Kb3 {[%clk 0:00:03]} 60. Rb8+ {[%clk 0:00:03]}  Kc2 {[%clk 0:00:03]} 61. Rc8+ {[%clk 0:00:04]}  Kb1 {[%clk 0:00:03]} 62. Ra8 {[%clk 0:00:05]}  Rb2 {[%clk 0:00:03]} 63. h6 {[%clk 0:00:05]}  Rh2 {[%clk 0:00:03]} 64. Rb8+ {[%clk 0:00:03]}  Kc1 {[%clk 0:00:03]} 65. Ra8 {[%clk 0:00:03]}  Kb1 {[%clk 0:00:03]} 66. Rb8+ {[%clk 0:00:04]}  Kc2 {[%clk 0:00:04]} 67. Ra8 {[%clk 0:00:04]}  Kb2 {[%clk 0:00:03]} 68. Rb8+ {[%clk 0:00:04]}  Ka1 {[%clk 0:00:02]} 69. Kf4 {[%clk 0:00:04]}  Rxh6 {[%clk 0:00:02]} 70. Kxg4 {[%clk 0:00:05]}  Rc6 {[%clk 0:00:02]} 71. Kh5 {[%clk 0:00:04]}  Rc5+ {[%clk 0:00:02]} 72. Kh4 {[%clk 0:00:04]}  Rc2 {[%clk 0:00:02]} 73. g4 {[%clk 0:00:05]}  Rh2+ {[%clk 0:00:02]} 74. Kg5 {[%clk 0:00:05]}  Rb2 {[%clk 0:00:03]} 75. Ra8 {[%clk 0:00:05]}  Kb1 {[%clk 0:00:04]} 76. Kh6 {[%clk 0:00:05]}  Rh2+ {[%clk 0:00:04]} 77. Kg6 {[%clk 0:00:05]}  a1=Q {[%clk 0:00:04]} 78. Rxa1+ {[%clk 0:00:06]}  Kxa1 {[%clk 0:00:04]} 79. g5 {[%clk 0:00:07]}  Kb2 {[%clk 0:00:05]} 80. Kf7 {[%clk 0:00:07]}  Rf2+ {[%clk 0:00:06]} 81. Ke7 {[%clk 0:00:07]}  Rg2 {[%clk 0:00:05]} 82. Kf6 {[%clk 0:00:06]}  Rf2+ {[%clk 0:00:06]} 83. Ke7 {[%clk 0:00:06]}  Kc3 {[%clk 0:00:06]} 84. g6 {[%clk 0:00:07]}  Rg2 {[%clk 0:00:06]} 85. Kf7 {[%clk 0:00:07]}  Rf2+ {[%clk 0:00:06]} 86. Ke7 {[%clk 0:00:08]}  Re2+ {[%clk 0:00:06]} 87. Kf7 {[%clk 0:00:08]}  Rf2+ {[%clk 0:00:06]} 88. Ke7 {[%clk 0:00:08]} 1/2-1/2


[Site "https://www.chess.com"]